[Event "11th Arad Open 2018"]
[Site "Arad"]
[Date "2018.08.11"]
[Round "8"]
[White "Cioara, Andrei-Nestor"]
[Black "Dinu, Dumitru-Daniel"]
[Result "1-0"]
[ECO "A57"]
[WhiteElo "2435"]
[BlackElo "2225"]
[Annotator "NA RC"]
[PlyCount "55"]
[EventDate "2018.08.05"]
[EventType "swiss"]
[EventCountry "ROU"]
[SourceTitle "playchess.com"]
[Source "ChessBase"]
[SourceQuality "1"]
[TimeControl "40/5400+30:1800+30"]

1. d4 {[%emt 0:04:48]} Nf6 {[%emt 0:00:00]} 2. c4 {[%emt 0:00:09]} c5 {[%emt 0:00:00]} 3. d5 {[%emt 0:00:05]} b5 {[%emt 0:00:00]} 4. Qc2 {[%emt 0:01:43]} bxc4 {[%emt 0:01:14]} 5. e4 {[%emt 0:00:07]} Bb7 {[%emt 0:00:10]} 6. Bxc4 {[%emt 0:03:49]} e6 {[%emt 0:00:55]} 7. Nc3 {[%emt 0:05:26]} Na6 {[%emt 0:10:33]} 8. Bg5 {[%emt 0:25:02]} Be7 {[%emt 0:03:34]} 9. Bf4 {[%emt 0:05:53]} Nb4 {[%emt 0:01:17]} 10. Qb3 {[%emt 0:01:33]} Nxe4 {[%emt 0:08:35]} 11. Nxe4 {[%emt 0:09:27]} exd5 {[%emt 0:07:03]} 12. Nd6+ {[%emt 0:00:10]} Bxd6 {[%emt 0:00:41]} 13. Bxd6 {[%emt 0:00:07]} Qf6 {[%emt 0:00:23]} 14. Bxc5 {[%emt 0:02:50]} dxc4 {[%emt 0:03:08]} 15. Qxb4 {[%emt 0:00:10]} Bxg2 {[%emt 0:10:12]} 16. O-O-O {[%emt 0:00:26]} Qh6+ {[%emt 0:18:27]} 17. Kb1 {[%emt 0:08:10]} Bxh1 {[%emt 0:01:35]} 18. f3 {[%emt 0:09:13]} Qc6 {[%emt 0:07:52]} 19. Rd6 {[%emt 0:01:06]} Qc7 {[%emt 0:01:27]} 20. Rd5 {[%emt 0:07:53]} f6 {[%emt 0:05:23]} 21. Qe1+ {[%emt 0:01:07]} Kf7 {[%emt 0:00:22]} 22. Qe7+ {[%emt 0:00:05]} Kg6 {[%emt 0:00:05]} 23. Qe4+ {[%emt 0:00:12]} Kf7 {[%emt 0:00:20]} 24. Qxc4 {[%emt 0:02:48]} Kg6 {[%emt 0:04:12]} 25. Qg4+ {[%emt 0:00:10]} Kf7 {[%emt 0:00:06]} 26. Rxd7+ {[%emt 0:00:06]} Qxd7 {[%emt 0:00:01]} 27. Qxd7+ {[%emt 0:00:06]} Kg6 {[%emt 0:00:30]} 28. Nh3 {[%emt 0:01:46]} 1-0

[Event "11th Arad Open 2018"]
[Site "Arad"]
[Date "2018.08.11"]
[Round "8"]
[White "Sanduleac, Vasile"]
[Black "Vajda, Levente"]
[Result "0-1"]
[ECO "C00"]
[WhiteElo "2420"]
[BlackElo "2558"]
[Annotator "ChessBase"]
[PlyCount "80"]
[EventDate "2018.08.05"]
[EventType "swiss"]
[EventCountry "ROU"]
[SourceTitle "playchess.com"]
[Source "ChessBase"]
[SourceQuality "1"]
[TimeControl "40/5400+30:1800+30"]

1. e4 {[%emt 0:00:00]} e6 {[%emt 0:00:00]} 2. d3 {[%emt 0:01:27]} d5 {[%emt 0:01:01]} 3. Nd2 {[%emt 0:00:11]} Nf6 {[%emt 0:01:35]} 4. Ngf3 {[%emt 0:00:34]} c5 {[%emt 0:00:16]} 5. g3 {[%emt 0:00:40]} Nc6 {[%emt 0:00:10]} 6. Bg2 {[%emt 0:00:08]} b6 {[%emt 0:04:26]} 7. O-O {[%emt 0:00:20]} Ba6 {[%emt 0:00:46]} 8. exd5 {[%emt 0:02:26]} exd5 {[%emt 0:03:36]} 9. Re1+ {[%emt 0:02:00]} Be7 {[%emt 0:00:09]} 10. d4 {[%emt 0:01:48]} O-O {[%emt 0:02:12]} 11. Ne5 {[%emt 0:02:18]} Nxd4 {[%emt 0:04:31]} 12. c3 {[%emt 0:01:40]} Ne6 {[%emt 0:00:11]} 13. Nc6 {[%emt 0:03:22]} Qc7 {[%emt 0:00:37]} 14. Nxe7+ {[%emt 0:00:07]} Qxe7 {[%emt 0:00:04]} 15. Nf1 {[%emt 0:00:35]} Qd7 {[%emt 0:06:06]} 16. Ne3 {[%emt 0:02:37]} Rad8 {[%emt 0:00:56]} 17. Nf5 {[%emt 0:03:36]} Rfe8 {[%emt 0:02:29]} 18. Bd2 {[%emt 0:10:41]} Bd3 {[%emt 0:21:04]} 19. Ne3 {[%emt 0:00:40]} Be4 {[%emt 0:03:37]} 20. f3 {[%emt 0:05:05]} Bg6 {[%emt 0:00:05]} 21. Bh3 {[%emt 0:04:46]} Qb5 {[%emt 0:07:46]} 22. Qb3 {[%emt 0:00:59]} Qc6 {[%emt 0:02:08]} 23. Bg2 {[%emt 0:02:26]} c4 {[%emt 0:01:55]} 24. Qa3 {[%emt 0:02:07]} d4 {[%emt 0:00:11]} 25. Ng4 {[%emt 0:01:36]} Nxg4 {[%emt 0:03:00]} 26. fxg4 {[%emt 0:00:21]} Qc7 {[%emt 0:03:03]} 27. Qb4 {[%emt 0:09:50]} Bd3 {[%emt 0:03:18]} 28. Rac1 {[%emt 0:04:50]} Qd7 {[%emt 0:02:18]} 29. g5 {[%emt 0:15:52]} dxc3 {[%emt 0:04:14]} 30. bxc3 {[%emt 0:00:13]} Nc5 {[%emt 0:00:13]} 31. Be3 {[%emt 0:03:40]} Re5 {[%emt 0:00:09]} 32. Bxc5 {[%emt 0:01:05]} Rxc5 {[%emt 0:00:31]} 33. Re3 {[%emt 0:02:48]} Bf5 {[%emt 0:05:40]} 34. Rce1 {[%emt 0:01:06]} Be6 {[%emt 0:00:15]} 35. h4 {[%emt 0:00:24]} g6 {[%emt 0:01:51]} 36. Kh2 {[%emt 0:01:10]} Rb5 {[%emt 0:01:56]} 37. Qa3 {[%emt 0:03:49]} Ra5 {[%emt 0:00:04]} 38. Qb2 {[%emt 0:00:28]} Qd2 {[%emt 0:00:07]} 39. R1e2 {[%emt 0:00:33]} Qxb2 {[%emt 0:00:10]} 40. Rxb2 {[%emt 0:00:00]} Rd3 {[%emt 0:00:00]} 0-1

[Event "11th Arad Open 2018"]
[Site "Arad"]
[Date "2018.08.11"]
[Round "8"]
[White "Secheres, Adrian-Simion"]
[Black "Vrencian, Lehel"]
[Result "1/2-1/2"]
[ECO "B84"]
[WhiteElo "2407"]
[BlackElo "2293"]
[Annotator "NA"]
[PlyCount "131"]
[EventDate "2018.08.05"]
[EventType "swiss"]
[EventCountry "ROU"]
[SourceTitle "playchess.com"]
[Source "ChessBase"]
[SourceQuality "1"]
[TimeControl "40/5400+30:1800+30"]

1. e4 {[%emt 0:00:00]} c5 {[%emt 0:02:14]} 2. Nf3 {[%emt 0:00:00]} e6 {[%emt 0:00:04]} 3. d4 {[%emt 0:00:04]} cxd4 {[%emt 0:00:05]} 4. Nxd4 {[%emt 0:00:07]} Nf6 {[%emt 0:01:54]} 5. Nc3 {[%emt 0:00:14]} d6 {[%emt 0:00:11]} 6. Be2 {[%emt 0:02:18]} a6 {[%emt 0:00:11]} 7. O-O {[%emt 0:00:45]} b5 {[%emt 0:00:26]} 8. a3 {[%emt 0:01:50]} Bb7 {[%emt 0:01:41]} 9. Qe1 {[%emt 0:10:45]} Be7 {[%emt 0:06:18]} 10. f4 {[%emt 0:11:01]} O-O {[%emt 0:03:55]} 11. Bf3 {[%emt 0:04:13]} Qc7 {[%emt 0:02:28]} 12. Kh1 {[%emt 0:05:18]} Nc6 {[%emt 0:09:34]} 13. Be3 {[%emt 0:05:09]} Rfe8 {[%emt 0:02:02]} 14. Qg3 {[%emt 0:03:08]} Rac8 {[%emt 0:21:59]} 15. Nxc6 {[%emt 0:04:19]} Bxc6 {[%emt 0:00:10]} 16. Bd4 {[%emt 0:00:07]} g6 {[%emt 0:03:02]} 17. Rae1 {[%emt 0:08:16]} a5 {[%emt 0:04:46]} 18. e5 {[%emt 0:17:41]} Nd7 {[%emt 0:01:49]} 19. f5 {[%emt 0:08:55]} dxe5 {[%emt 0:17:15]} 20. fxe6 {[%emt 0:00:48]} fxe6 {[%emt 0:00:27]} 21. Bxc6 {[%emt 0:05:37]} exd4 {[%emt 0:01:51]} 22. Qxc7 {[%emt 0:00:41]} Rxc7 {[%emt 0:00:02]} 23. Bxd7 {[%emt 0:00:08]} Rxd7 {[%emt 0:00:07]} 24. Nxb5 {[%emt 0:00:05]} Bf8 {[%emt 0:04:11]} 25. Re4 {[%emt 0:01:26]} Bg7 {[%emt 0:00:16]} 26. a4 {[%emt 0:00:41]} e5 {[%emt 0:03:35]} 27. Rfe1 {[%emt 0:02:23]} Rc8 {[%emt 0:00:31]} 28. R1e2 {[%emt 0:02:07]} Rc4 {[%emt 0:04:08]} 29. b3 {[%emt 0:01:15]} d3 {[%emt 0:05:30]} 30. bxc4 {[%emt 0:00:06]} dxc2 {[%emt 0:01:18]} 31. Re1 {[%emt 0:00:26]} Rd1 {[%emt 0:00:07]} 32. Nc3 {[%emt 0:00:10]} c1=Q {[%emt 0:00:29]} 33. Nxd1 {[%emt 0:00:05]} Qc2 {[%emt 0:00:19]} 34. c5 {[%emt 0:00:45]} h5 {[%emt 0:02:11]} 35. c6 {[%emt 0:01:39]} Qxc6 {[%emt 0:00:17]} 36. Nb2 {[%emt 0:00:25]} h4 {[%emt 0:02:04]} 37. Nd3 {[%emt 0:00:46]} h3 {[%emt 0:00:31]} 38. gxh3 {[%emt 0:01:35]} Qd5 {[%emt 0:00:22]} 39. Nf2 {[%emt 0:01:00]} Bf8 {[%emt 0:00:37]} 40. Ng4 {[%emt 0:00:00]} Bg7 {[%emt 0:00:00]} 41. Kg2 {[%emt 0:17:23]} Kh7 {[%emt 0:17:51]} 42. R1e2 {[%emt 0:02:42]} Qc6 {[%emt 0:00:12]} 43. Kg3 {[%emt 0:02:27]} Qc3+ {[%emt 0:01:21]} 44. R2e3 {[%emt 0:00:20]} Qa1 {[%emt 0:00:39]} 45. Kg2 {[%emt 0:00:53]} Qa2+ {[%emt 0:00:29]} 46. Re2 {[%emt 0:00:12]} Qd5 {[%emt 0:00:18]} 47. h4 {[%emt 0:00:32]} Qc6 {[%emt 0:01:09]} 48. h3 {[%emt 0:00:32]} Qd5 {[%emt 0:01:00]} 49. Kg3 {[%emt 0:01:34]} Qd1 {[%emt 0:01:43]} 50. Kh2 {[%emt 0:00:29]} Qb3 {[%emt 0:07:06]} 51. Kg2 {[%emt 0:07:15]} Qd5 52. Kg3 {[%emt 0:00:26]} Qd1 {[%emt 0:00:25]} 53. Kh2 {[%emt 0:00:05]} Qb3 {[%emt 0:00:07]} 54. Nxe5 {[%emt 0:00:05]} Bxe5+ {[%emt 0:00:13]} 55. Rxe5 {[%emt 0:00:01]} Qxa4 {[%emt 0:00:07]} 56. h5 {[%emt 0:00:35]} gxh5 {[%emt 0:01:01]} 57. Rxh5+ {[%emt 0:00:26]} Kg6 {[%emt 0:00:08]} 58. Rhe5 {[%emt 0:01:11]} Qb4 {[%emt 0:01:05]} 59. R5e4 {[%emt 0:01:19]} Qd6+ {[%emt 0:00:54]} 60. Kg2 {[%emt 0:00:52]} Qd5 {[%emt 0:00:12]} 61. Kg3 {[%emt 0:00:48]} a4 {[%emt 0:01:31]} 62. Rg4+ {[%emt 0:00:52]} Kh5 {[%emt 0:02:03]} 63. Rh4+ {[%emt 0:00:29]} Kg5 {[%emt 0:00:17]} 64. Rg4+ {[%emt 0:00:44]} Kh5 {[%emt 0:00:05]} 65. Rh4+ {[%emt 0:02:16]} Kg5 {[%emt 0:00:05]} 66. Rg4+ {[%emt 0:00:30]} 1/2-1/2

[Event "11th Arad Open 2018"]
[Site "Arad"]
[Date "2018.08.11"]
[Round "8"]
[White "Abramovic, Bosko"]
[Black "Coca, Cristi-Iulian"]
[Result "1-0"]
[ECO "A00"]
[WhiteElo "2400"]
[BlackElo "2024"]
[Annotator "NA"]
[PlyCount "89"]
[EventDate "2018.08.05"]
[EventType "swiss"]
[EventCountry "ROU"]
[SourceTitle "playchess.com"]
[Source "ChessBase"]
[SourceQuality "1"]
[TimeControl "40/5400+30:1800+30"]

1. g3 {[%emt 0:00:00]} Nf6 {[%emt 0:00:00]} 2. Bg2 {[%emt 0:00:00]} g6 {[%emt 0:00:00]} 3. e4 {[%emt 0:00:45]} d6 {[%emt 0:00:29]} 4. d4 {[%emt 0:00:07]} Bg7 {[%emt 0:00:27]} 5. Ne2 {[%emt 0:00:09]} O-O {[%emt 0:00:39]} 6. Nbc3 {[%emt 0:00:06]} e5 {[%emt 0:01:40]} 7. h3 {[%emt 0:00:28]} exd4 {[%emt 0:06:49]} 8. Nxd4 {[%emt 0:01:21]} Re8 {[%emt 0:00:44]} 9. O-O {[%emt 0:00:08]} Nc6 {[%emt 0:03:35]} 10. Be3 {[%emt 0:00:51]} Bd7 {[%emt 0:05:47]} 11. Re1 {[%emt 0:01:40]} Qc8 {[%emt 0:05:58]} 12. Kh2 {[%emt 0:17:41]} Re5 {[%emt 0:21:21]} 13. f3 {[%emt 0:12:29]} Rh5 {[%emt 0:07:15]} 14. Nxc6 {[%emt 0:00:25]} bxc6 {[%emt 0:00:44]} 15. h4 {[%emt 0:00:07]} Rb8 {[%emt 0:05:54]} 16. Rb1 {[%emt 0:03:09]} Rb7 {[%emt 0:04:01]} 17. b3 {[%emt 0:08:56]} h6 {[%emt 0:08:11]} 18. Kg1 {[%emt 0:01:06]} Kh7 {[%emt 0:10:53]} 19. Qd2 {[%emt 0:07:17]} Re5 {[%emt 0:02:45]} 20. Ne2 {[%emt 0:02:17]} d5 {[%emt 0:02:01]} 21. Bd4 {[%emt 0:00:08]} Re6 {[%emt 0:03:30]} 22. Nf4 {[%emt 0:02:58]} Re8 {[%emt 0:02:44]} 23. exd5 {[%emt 0:09:40]} cxd5 {[%emt 0:01:08]} 24. Nxd5 {[%emt 0:00:43]} Nxd5 {[%emt 0:00:16]} 25. Bxg7 {[%emt 0:00:07]} Kxg7 {[%emt 0:00:03]} 26. Qxd5 {[%emt 0:00:05]} Rb6 {[%emt 0:00:53]} 27. Rbd1 {[%emt 0:03:32]} Rd6 {[%emt 0:01:26]} 28. Qc5 {[%emt 0:00:07]} Rxd1 {[%emt 0:02:50]} 29. Rxd1 {[%emt 0:00:05]} Kg8 {[%emt 0:01:26]} 30. Qxa7 {[%emt 0:06:30]} Bf5 {[%emt 0:00:41]} 31. Qf2 {[%emt 0:00:27]} Qa6 {[%emt 0:00:39]} 32. c4 {[%emt 0:00:13]} h5 {[%emt 0:00:25]} 33. Kh2 {[%emt 0:01:09]} Ra8 {[%emt 0:00:32]} 34. Rd2 {[%emt 0:00:49]} Bb1 {[%emt 0:00:06]} 35. f4 {[%emt 0:00:36]} Re8 {[%emt 0:00:04]} 36. Bh3 {[%emt 0:05:56]} Qf6 {[%emt 0:00:46]} 37. Bg2 {[%emt 0:01:12]} Qa6 {[%emt 0:00:23]} 38. Rb2 {[%emt 0:00:42]} Bf5 {[%emt 0:00:12]} 39. Re2 {[%emt 0:00:22]} Rd8 {[%emt 0:00:15]} 40. Qc5 {[%emt 0:00:00]} Bg4 {[%emt 0:00:00]} 41. Qxc7 {[%emt 0:23:59]} Rc8 {[%emt 0:19:42]} 42. Qb7 {[%emt 0:00:48]} Qf6 {[%emt 0:00:54]} 43. Qe7 {[%emt 0:03:02]} Qd4 {[%emt 0:00:19]} 44. Qe3 {[%emt 0:00:15]} Qa1 {[%emt 0:00:22]} 45. Rd2 {[%emt 0:00:15]} 1-0

[Event "11th Arad Open 2018"]
[Site "Arad"]
[Date "2018.08.11"]
[Round "8"]
[White "Stoleriu, George"]
[Black "Ciorgovean, Iustin"]
[Result "0-1"]
[ECO "B23"]
[WhiteElo "2392"]
[BlackElo "2245"]
[Annotator "NA"]
[PlyCount "52"]
[EventDate "2018.08.05"]
[EventType "swiss"]
[EventCountry "ROU"]
[SourceTitle "playchess.com"]
[Source "ChessBase"]
[SourceQuality "1"]
[TimeControl "40/5400+30:1800+30"]

1. e4 {[%emt 0:00:00]} c5 {[%emt 0:00:00]} 2. Nc3 {[%emt 0:00:00]} d6 {[%emt 0:00:00]} 3. f4 {[%emt 0:00:00]} g6 {[%emt 0:00:00]} 4. Nf3 {[%emt 0:00:00]} Bg7 {[%emt 0:00:00]} 5. Bb5+ {[%emt 0:00:00]} Bd7 {[%emt 0:00:06]} 6. Bc4 {[%emt 0:00:10]} Nc6 {[%emt 0:04:15]} 7. O-O {[%emt 0:00:51]} e6 {[%emt 0:01:46]} 8. d3 {[%emt 0:01:29]} Nge7 {[%emt 0:01:48]} 9. f5 {[%emt 0:00:55]} exf5 {[%emt 0:10:23]} 10. Qe1 {[%emt 0:00:14]} Ne5 {[%emt 0:19:25]} 11. Nxe5 {[%emt 0:17:33]} dxe5 {[%emt 0:00:05]} 12. exf5 {[%emt 0:02:26]} Nxf5 {[%emt 0:12:13]} 13. Ne4 {[%emt 0:07:21]} O-O {[%emt 0:05:12]} 14. g4 {[%emt 0:10:21]} Nd4 {[%emt 0:06:13]} 15. Bg5 {[%emt 0:00:41]} Qb6 {[%emt 0:00:16]} 16. Be7 {[%emt 0:31:03]} Qxb2 {[%emt 0:14:42]} 17. Rb1 {[%emt 0:18:43]} Qxc2 {[%emt 0:02:23]} 18. Bxf8 {[%emt 0:02:21]} Rxf8 {[%emt 0:01:38]} 19. Rxb7 {[%emt 0:02:48]} Ne2+ {[%emt 0:04:26]} 20. Kh1 {[%emt 0:00:04]} Bc6 {[%emt 0:00:17]} 21. Rbxf7 {[%emt 0:02:13]} Bxe4+ {[%emt 0:02:09]} 22. R7f3+ {[%emt 0:01:06]} Qxc4 {[%emt 0:00:47]} 23. dxc4 {[%emt 0:00:33]} Rxf3 {[%emt 0:00:20]} 24. Kg2 {[%emt 0:00:17]} Nf4+ {[%emt 0:00:27]} 25. Kg1 {[%emt 0:00:05]} Nh3+ {[%emt 0:00:11]} 26. Kg2 {[%emt 0:00:02]} Re3+ {[%emt 0:00:13]} 0-1

[Event "11th Arad Open 2018"]
[Site "Arad"]
[Date "2018.08.11"]
[Round "8"]
[White "Bogdan, Dan"]
[Black "Terbe, Julianna"]
[Result "1/2-1/2"]
[ECO "A06"]
[WhiteElo "2382"]
[BlackElo "2234"]
[Annotator "NA"]
[PlyCount "57"]
[EventDate "2018.08.05"]
[EventType "swiss"]
[EventCountry "ROU"]
[SourceTitle "playchess.com"]
[Source "ChessBase"]
[SourceQuality "1"]
[TimeControl "40/5400+30:1800+30"]

1. Nf3 {[%emt 0:01:38]} d5 {[%emt 0:00:07]} 2. g3 {[%emt 0:00:31]} Nf6 {[%emt 0:00:14]} 3. Bg2 {[%emt 0:00:24]} c6 {[%emt 0:00:06]} 4. O-O {[%emt 0:01:01]} Bf5 {[%emt 0:00:10]} 5. d3 {[%emt 0:00:38]} e6 {[%emt 0:00:05]} 6. Nc3 {[%emt 0:03:20]} h6 {[%emt 0:01:59]} 7. Nd2 {[%emt 0:02:01]} Be7 {[%emt 0:00:56]} 8. e4 {[%emt 0:01:32]} Bh7 {[%emt 0:00:05]} 9. Qe2 {[%emt 0:04:18]} O-O {[%emt 0:00:26]} 10. f4 {[%emt 0:04:02]} b5 {[%emt 0:05:38]} 11. Nd1 {[%emt 0:00:53]} Nbd7 {[%emt 0:02:20]} 12. Nf2 {[%emt 0:06:04]} Rc8 {[%emt 0:03:06]} 13. Kh1 {[%emt 0:07:18]} c5 {[%emt 0:01:52]} 14. f5 {[%emt 0:06:57]} dxe4 {[%emt 0:15:21]} 15. fxe6 {[%emt 0:02:19]} exd3 {[%emt 0:00:07]} 16. Nxd3 {[%emt 0:00:12]} c4 {[%emt 0:00:42]} 17. Nf4 {[%emt 0:07:22]} Nc5 {[%emt 0:00:50]} 18. Nf3 {[%emt 0:00:19]} Nxe6 {[%emt 0:07:36]} 19. Nxe6 {[%emt 0:02:13]} fxe6 {[%emt 0:00:06]} 20. Qxe6+ {[%emt 0:02:51]} Kh8 {[%emt 0:00:05]} 21. c3 {[%emt 0:05:29]} Bc5 {[%emt 0:06:34]} 22. Bf4 {[%emt 0:01:03]} Re8 {[%emt 0:08:36]} 23. Qa6 {[%emt 0:01:22]} Ne4 {[%emt 0:04:40]} 24. h3 {[%emt 0:10:19]} Qb6 {[%emt 0:03:18]} 25. Qxb6 {[%emt 0:02:48]} axb6 {[%emt 0:01:23]} 26. Kh2 {[%emt 0:02:29]} Nf2 {[%emt 0:07:05]} 27. b4 {[%emt 0:09:53]} cxb3 {[%emt 0:01:53]} 28. axb3 {[%emt 0:00:02]} Nd3 {[%emt 0:00:34]} 29. Bd2 {[%emt 0:00:58]} 1/2-1/2

[Event "11th Arad Open 2018"]
[Site "Arad"]
[Date "2018.08.11"]
[Round "8"]
[White "Baratosi, Daniel"]
[Black "Zubcu, Vlad-George"]
[Result "1-0"]
[ECO "A00"]
[WhiteElo "2371"]
[BlackElo "2202"]
[Annotator "NA"]
[PlyCount "43"]
[EventDate "2018.08.05"]
[EventType "swiss"]
[EventCountry "ROU"]
[SourceTitle "playchess.com"]
[Source "ChessBase"]
[SourceQuality "1"]
[TimeControl "40/5400+30:1800+30"]

1. g3 {[%emt 0:08:15]} d5 {[%emt 0:02:01]} 2. Bg2 {[%emt 0:00:04]} Nf6 {[%emt 0:02:09]} 3. f4 {[%emt 0:03:33]} Bf5 {[%emt 0:06:59]} 4. Nf3 {[%emt 0:00:59]} c6 {[%emt 0:00:20]} 5. O-O {[%emt 0:04:05]} e6 {[%emt 0:00:46]} 6. e3 {[%emt 0:00:04]} Nbd7 {[%emt 0:00:22]} 7. Nc3 {[%emt 0:02:43]} h6 {[%emt 0:06:25]} 8. d3 {[%emt 0:03:08]} Be7 {[%emt 0:02:07]} 9. Qe2 {[%emt 0:04:45]} Qc7 {[%emt 0:06:02]} 10. e4 {[%emt 0:02:47]} dxe4 {[%emt 0:00:22]} 11. dxe4 {[%emt 0:00:03]} Bg4 {[%emt 0:01:19]} 12. h3 {[%emt 0:07:43]} Bxf3 {[%emt 0:00:22]} 13. Rxf3 {[%emt 0:00:35]} e5 {[%emt 0:00:26]} 14. a3 {[%emt 0:00:38]} exf4 {[%emt 0:03:56]} 15. gxf4 {[%emt 0:00:21]} O-O-O {[%emt 0:00:41]} 16. e5 {[%emt 0:04:39]} Ne8 {[%emt 0:04:32]} 17. b4 {[%emt 0:01:00]} g5 {[%emt 0:00:24]} 18. b5 {[%emt 0:06:15]} gxf4 {[%emt 0:03:20]} 19. Bxf4 {[%emt 0:02:06]} Bg5 {[%emt 0:03:43]} 20. Bg3 {[%emt 0:10:35]} Qb6+ {[%emt 0:01:29]} 21. Bf2 {[%emt 0:04:52]} c5 {[%emt 0:00:28]} 22. Qe4 {[%emt 0:07:25]} 1-0

[Event "11th Arad Open 2018"]
[Site "Arad"]
[Date "2018.08.11"]
[Round "8"]
[White "Abramciuc, Marius"]
[Black "Kelly, Ladislau-Endre"]
[Result "0-1"]
[ECO "B01"]
[WhiteElo "2357"]
[BlackElo "2173"]
[Annotator "NA"]
[PlyCount "46"]
[EventDate "2018.08.05"]
[EventType "swiss"]
[EventCountry "ROU"]
[SourceTitle "playchess.com"]
[Source "ChessBase"]
[SourceQuality "1"]
[TimeControl "40/5400+30:1800+30"]

1. e4 {[%emt 0:00:00]} d5 {[%emt 0:00:00]} 2. exd5 {[%emt 0:00:00]} Nf6 {[%emt 0:00:00]} 3. d4 {[%emt 0:00:02]} Bg4 {[%emt 0:00:01]} 4. Be2 {[%emt 0:02:51]} Bxe2 {[%emt 0:00:16]} 5. Qxe2 {[%emt 0:00:09]} Qxd5 {[%emt 0:00:15]} 6. Nf3 {[%emt 0:00:07]} e6 {[%emt 0:00:18]} 7. c4 {[%emt 0:03:33]} Qf5 {[%emt 0:00:11]} 8. d5 {[%emt 0:07:27]} Bc5 {[%emt 0:00:06]} 9. dxe6 {[%emt 0:02:32]} O-O {[%emt 0:00:07]} 10. O-O {[%emt 0:05:52]} Nc6 {[%emt 0:00:10]} 11. Nc3 {[%emt 0:06:46]} Rae8 {[%emt 0:00:36]} 12. exf7+ {[%emt 0:02:00]} Rxf7 {[%emt 0:00:19]} 13. Be3 {[%emt 0:00:04]} Ng4 {[%emt 0:25:03]} 14. Nd5 {[%emt 0:10:23]} Qh5 {[%emt 0:08:37]} 15. h3 {[%emt 0:01:08]} Nge5 {[%emt 0:02:04]} 16. Nd4 {[%emt 0:43:38]} Qh4 {[%emt 0:09:48]} 17. Nb3 {[%emt 0:02:32]} Nf3+ {[%emt 0:20:45]} 18. gxf3 {[%emt 0:05:22]} Qxh3 {[%emt 0:05:34]} 19. Nxc5 {[%emt 0:02:22]} Nd4 {[%emt 0:01:10]} 20. Bxd4 {[%emt 0:01:49]} Rxe2 {[%emt 0:00:05]} 21. Rfe1 {[%emt 0:00:47]} Rf5 {[%emt 0:01:06]} 22. Ne7+ {[%emt 0:01:03]} Rxe7 {[%emt 0:00:06]} 23. Ne4 {[%emt 0:00:30]} Rxe4 {[%emt 0:00:30]} 0-1

[Event "11th Arad Open 2018"]
[Site "Arad"]
[Date "2018.08.11"]
[Round "8"]
[White "Tiba, Vladyslav"]
[Black "Antal, Gergely"]
[Result "0-1"]
[ECO "B30"]
[WhiteElo "2356"]
[BlackElo "2549"]
[Annotator "ChessBase"]
[PlyCount "77"]
[EventDate "2018.08.05"]
[EventType "swiss"]
[EventCountry "ROU"]
[SourceTitle "playchess.com"]
[Source "ChessBase"]
[SourceQuality "1"]
[TimeControl "40/5400+30:1800+30"]

1. e4 {[%emt 0:00:00]} c5 {[%emt 0:00:57]} 2. Nf3 {[%emt 0:00:00]} Nc6 {[%emt 0:00:12]} 3. Bb5 {[%emt 0:00:39]} e6 {[%emt 0:00:12]} 4. O-O {[%emt 0:00:16]} Nge7 {[%emt 0:00:21]} 5. d4 {[%emt 0:00:14]} cxd4 {[%emt 0:00:24]} 6. Nxd4 {[%emt 0:00:08]} Qb6 {[%emt 0:00:20]} 7. Nxc6 {[%emt 0:00:26]} dxc6 {[%emt 0:00:12]} 8. Be2 {[%emt 0:03:19]} Ng6 {[%emt 0:00:07]} 9. Nd2 {[%emt 0:06:32]} Qc7 {[%emt 0:04:28]} 10. a4 {[%emt 0:06:32]} e5 {[%emt 0:12:37]} 11. Nc4 {[%emt 0:06:17]} Be6 {[%emt 0:01:14]} 12. Be3 {[%emt 0:06:12]} Be7 {[%emt 0:03:46]} 13. a5 {[%emt 0:05:40]} O-O {[%emt 0:00:24]} 14. g3 {[%emt 0:07:36]} Rfd8 {[%emt 0:12:58]} 15. Qb1 {[%emt 0:01:04]} Nf4 {[%emt 0:06:14]} 16. gxf4 {[%emt 0:27:21]} exf4 {[%emt 0:00:04]} 17. Qc1 {[%emt 0:00:39]} fxe3 {[%emt 0:06:18]} 18. Qxe3 {[%emt 0:00:12]} Rab8 {[%emt 0:09:41]} 19. Qg3 {[%emt 0:03:32]} Qxg3+ {[%emt 0:00:21]} 20. hxg3 {[%emt 0:00:05]} Rd4 {[%emt 0:00:06]} 21. b3 {[%emt 0:04:35]} Rxe4 {[%emt 0:00:07]} 22. Bf3 {[%emt 0:00:26]} Rd4 {[%emt 0:00:16]} 23. Rfd1 {[%emt 0:00:12]} Rxd1+ {[%emt 0:01:11]} 24. Rxd1 {[%emt 0:00:14]} a6 {[%emt 0:02:00]} 25. Nd6 {[%emt 0:03:54]} Rd8 {[%emt 0:04:32]} 26. Nc4 {[%emt 0:05:16]} Rxd1+ {[%emt 0:00:05]} 27. Bxd1 {[%emt 0:00:05]} Bb4 {[%emt 0:00:59]} 28. Kf1 {[%emt 0:02:50]} Kf8 {[%emt 0:00:15]} 29. Bf3 {[%emt 0:01:23]} Ke7 {[%emt 0:02:03]} 30. Ke2 {[%emt 0:00:44]} Bf5 {[%emt 0:05:40]} 31. Ne3 {[%emt 0:00:45]} Be6 {[%emt 0:04:15]} 32. Nc4 {[%emt 0:00:23]} Bxc4+ {[%emt 0:05:13]} 33. bxc4 {[%emt 0:00:07]} Bxa5 {[%emt 0:00:02]} 34. Bg4 {[%emt 0:00:24]} Kd6 {[%emt 0:00:18]} 35. Bc8 {[%emt 0:01:07]} Kc7 {[%emt 0:00:04]} 36. Bf5 {[%emt 0:00:39]} g6 {[%emt 0:00:30]} 37. Bh3 {[%emt 0:01:36]} Bb4 {[%emt 0:02:09]} 38. Kd3 {[%emt 0:00:37]} a5 {[%emt 0:00:26]} 39. Kd4 0-1